Cogmind - Beta 13 @@@ ROGUE MODE // 2024.04.17 @ 08:51:29 Player: Terrible T Rex Result: Destroyed by C-17 Slicer with Blade Saw Performance ------------- Evolutions (2) 1000 Regions Visited (5) 1000 Robots Destroyed (4) 20 Value Destroyed (208) 208 Prototype IDs (2) 40 Alien Tech Used (0) 0 Bonus (670) 670 TOTAL SCORE: 2938 Bonus ------- Pacifist 470 Entered Garrisons 200 Cogmind --------- Core Integrity 0/550 Matter 234/300 Energy 97/100 System Corruption 0% Temperature Cool (0) Movement Core (100) Ox1 Location -8/Garrison Parts ------- > --- POWER (2) -------- (None) > --- PROPULSION (4) --- (None) > --- UTILITY (3) ------ (None) > --- WEAPON (2) ------- Assault Cannon > --- INVENTORY (5) ---- (None) Peak State ------------ > --- POWER ------------ (None) > --- PROPULSION ------- Improved Aluminum Leg > --- UTILITY ---------- Improved Sensor Array Hardened Light Armor Plating Hardlight Generator > --- WEAPON ----------- (None) > --- INVENTORY -------- (None) [Rating: 10] Favorites ----------- Power Light Ion Engine Engine Light Ion Engine Propulsion Aluminum Leg Leg Aluminum Leg Utility Hardened Light Armor Plating Device Improved Sensor Array Storage Large Storage Unit Protection Hardened Light Armor Plating Weapon Assault Cannon Ballistic Cannon Assault Cannon Launcher Mini Grenade Launcher Build | -11 -10 -10 -9 -8 -8 ------- Run | Yrd Mat Min Mat Mat Gar Slots Evolved 4 | . . . 2 2 . Power 1 | . . . 1 . . Propulsion 2 | . . . 1 1 . Utility 1 | . . . . 1 . Weapon . | . . . . . . Parts Attached 15 | 5 2 . 3 3 2 Power 3 | 2 . . 1 . . Engine 3 | 2 . . 1 . . Core . | . . . . . . Reactor . | . . . . . . Propulsion 3 | 2 . . 1 . . Treads . | . . . . . . Leg 3 | 2 . . 1 . . Wheel . | . . . . . . Hover . | . . . . . . Flight . | . . . . . . Utility 6 | 1 2 . 1 2 . Device 2 | . . . . 2 . Storage 3 | 1 2 . . . . Processor . | . . . . . . Hackware . | . . . . . . Protection 1 | . . . 1 . . Artifact . | . . . . . . Weapon 3 | . . . . 1 2 Energy Gun . | . . . . . . Energy Cannon . | . . . . . . Ballistic Gun . | . . . . . . Ballistic Cannon 2 | . . . . . 2 Launcher 1 | . . . . 1 . Special Weapon . | . . . . . . Impact Weapon . | . . . . . . Slashing Weapon . | . . . . . . Piercing Weapon . | . . . . . . Special Melee Weapon . | . . . . . . Unidentified Prototypes . | . . . . . . Parts Lost 7 | . 1 . 1 5 . Power 1 | . . . 1 . . Propulsion 2 | . 1 . . 1 . Utility 3 | . . . . 3 . Weapon 1 | . . . . 1 . Highest Loss Streak 3 | . 1 . 1 3 . To Critical Strikes . | . . . . . . Average Slot Usage (%) 33 | . 65 . 25 22 1 Engine 7 | . 13 . 9 . . Leg 11 | . 26 . 7 5 . Device 2 | . . . . 10 . Storage 6 | . 25 . . . . Protection 4 | . . . 8 5 . Naked Turns 106 | . 2 16 41 8 39 Heaviest Build 45 | 10 45 . 8 11 5 Greatest Support 20 | 20 20 3 13 13 3 Greatest Overweight (x) 3 | . 2 . 2 3 1 Average Overweight (x) . | . 1 . . . . Largest Inventory Capacity 15 | 8 15 5 5 5 5 Average Capacity 7 | 6 14 5 5 5 5 Most Carried 3 | 2 3 1 1 1 1 Average Carried . | . 1 1 . . . Final Capacity 8 | 8 5 5 5 5 5 Final Carried 1 | 1 1 1 . . . Class Distribution -------------------- 100% | Mutant Dominant Class ---------------- Mutant | -10/Materials Mutant | -10/Mines Mutant | -9/Materials Mutant | -8/Materials Mutant | -8/Garrison Resources | -11 -10 -10 -9 -8 -8 ----------- Run | Yrd Mat Min Mat Mat Gar Matter Collected 325 | 207 . . 58 60 . Remotely . | . . . . . . Salvage Created 121 | . . . . 121 . Parts 4 | . . . . 4 . Haulers Intercepted . | . . . . . . Recyclers Shooed . | . . . . . . Parts Field Recycled . | . . . . . . Retrieved Matter . | . . . . . . Parts Self-Destructed . | . . . . . . Prevented . | . . . . . . Kills | -11 -10 -10 -9 -8 -8 ------- Run | Yrd Mat Min Mat Mat Gar Combat Hostiles Destroyed 4 | . . . . 4 . AOE 4 | . . . . 4 . Classes Destroyed 1 | . . . . 1 . Grunt 4 | . . . . 4 . Best Kill Streak 4 | . . . . 4 . Combat Bots Only 4 | . . . . 4 . Max Kills in Single Turn 1 | . . . . 1 . Gunslinging . | . . . . . . Exploded 1 | . . . . 1 . Melee . | . . . . . . Uniques/NPCs Destroyed . | . . . . . . Combat | -11 -10 -10 -9 -8 -8 -------- Run | Yrd Mat Min Mat Mat Gar Hostile Shots Fired 189 | . 69 2 30 51 37 Missed 64 | . 26 1 10 18 9 Damage Taken 1556 | . 387 10 262 566 331 Core 762 | . 143 10 55 324 230 Absorbed by Shields 32 | . . . . 32 . Core Remaining (%) 74 | 100 . 38 86 . . Volleys Fired 10 | . . . . 5 5 Largest 2 | . . . . 1 2 Hottest 88 | . . . . 30 88 Shots Fired 11 | . . . . 5 6 Gun . | . . . . . . Cannon 6 | . . . . . 6 Launcher 5 | . . . . 5 . Special . | . . . . . . Kinetic 6 | . . . . . 6 Thermal . | . . . . . . Explosive 5 | . . . . 5 . Electromagnetic . | . . . . . . Robot Hit Streak 2 | . . . . 2 . Robot Miss Streak 6 | . . . . 1 6 Penetration Max . | . . . . . . Secondary Targets . | . . . . . . Shots Hit Robots 3 | . . . . 3 . Core Hits 12 | . . . . 12 . Critical Kills . | . . . . . . Critical Parts Destroyed . | . . . . . . Critical Strikes . | . . . . . . Melee Attacks . | . . . . . . Impact . | . . . . . . Slashing . | . . . . . . Piercing . | . . . . . . Sneak Attacks . | . . . . . . Combat Hostiles . | . . . . . . Follow-up Attacks . | . . . . . . Damage Inflicted 368 | . . . . 368 . Guns . | . . . . . . Cannons . | . . . . . . Explosions 360 | . . . . 360 . Melee . | . . . . . . Ramming 8 | . . . . 8 . Kinetic . | . . . . . . Thermal . | . . . . . . Explosive 360 | . . . . 360 . Electromagnetic . | . . . . . . Impact . | . . . . . . Slashing . | . . . . . . Piercing . | . . . . . . Highest Corruption . | . . . . . . Average Corruption . | . . . . . . Corruption Purged . | . . . . . . Corruption Blocked . | . . . . . . Overload Shots . | . . . . . . Overflow Damage 10 | . . . . 10 . Projectiles . | . . . . . . Explosions 10 | . . . . 10 . Melee . | . . . . . . Knockbacks . | . . . . . . Impact . | . . . . . . Kinetic . | . . . . . . Secondary . | . . . . . . Self-Inflicted Damage 93 | . . . . 93 . Shots 4 | . . . . 4 . Rammed 1 | . . . . 1 . Targets Rammed 1 | . . . . 1 . Kicked . | . . . . . . Crushed . | . . . . . . Highest Temperature 11 | . . . 10 11 . Average Temperature 10 | . . . 10 11 . Received Heat Transfer 472 | . 66 6 129 235 36 Siege Activations . | . . . . . . Robots Corrupted . | . . . . . . Combat Hostiles . | . . . . . . Parts Fried . | . . . . . . Impact Corruptions . | . . . . . . Robots Melted . | . . . . . . Combat Hostiles . | . . . . . . Parts Melted . | . . . . . . Heat Transferred . | . . . . . . Parts Sabotaged . | . . . . . . Parts Stolen . | . . . . . . Parts Stripped . | . . . . . . Power Chain Reactions . | . . . . . . Alert | -11 -10 -10 -9 -8 -8 ------- Run | Yrd Mat Min Mat Mat Gar Peak Influence 216 | . . . 85 216 163 Initial 133 | . . . . 31 133 Average 37 | . . . 28 72 142 Maximum Alert Level 1 | . . . . 1 . Low Security (%) 98 | 100 100 100 100 92 100 Level 1 1 | . . . . 7 . Level 2 . | . . . . . . Level 3 . | . . . . . . Level 4 . | . . . . . . Level 5 . | . . . . . . High Security . | . . . . . . Max Security . | . . . . . . Squads Dispatched 3 | . . . 1 2 . Investigation 1 | . . . . 1 . Extermination . | . . . . . . Reinforcement 2 | . . . 1 1 . Assault . | . . . . . . Garrison . | . . . . . . Intercept . | . . . . . . Searches Triggered . | . . . . . . Construction Impeded 1 | . . . . 1 . Haulers Reinforced . | . . . . . . Active Scanning Responses . | . . . . . . Cargo Convoy Interrupts . | . . . . . . Stealth | -11 -10 -10 -9 -8 -8 --------- Run | Yrd Mat Min Mat Mat Gar Distress Signals 1 | . . . 1 . . Communications Jammed . | . . . . . . Distress Signals . | . . . . . . Times Spotted 40 | . 7 2 8 12 11 Peak Tracking Total 11 | . 6 2 5 8 11 Tactical Retreats 2 | . . . 1 . 1 Traps | -11 -10 -10 -9 -8 -8 ------- Run | Yrd Mat Min Mat Mat Gar Traps Triggered . | . . . . . . Indirectly . | . . . . . . Trap Hack Attempts . | . . . . . . Triggered . | . . . . . . Disarmed . | . . . . . . Reprogrammed . | . . . . . . Reused . | . . . . . . Traps Extracted . | . . . . . . Installed . | . . . . . . Triggered . | . . . . . . Machines | -11 -10 -10 -9 -8 -8 ---------- Run | Yrd Mat Min Mat Mat Gar Machines Disabled 2 | . . . . 2 . Max in Single Turn 1 | . . . . 1 . Machines Repaired . | . . . . . . Machines Dismantled . | . . . . . . Machines Sabotaged . | . . . . . . Overloaded Fab Kills . | . . . . . . Hacking | -11 -10 -10 -9 -8 -8 --------- Run | Yrd Mat Min Mat Mat Gar Machines Accessed 6 | . 1 . 2 3 . Terminals 5 | . 1 . 2 2 . Fabricators . | . . . . . . Repair Stations . | . . . . . . Recycling Units . | . . . . . . Scanalyzers . | . . . . . . Garrison Access 1 | . . . . 1 . Total Hacks 14 | . 5 . 4 5 . Successful 9 | . 2 . 4 3 . Failed 5 | . 3 . . 2 . Catastrophic 2 | . 1 . . 1 . Database Lockouts . | . . . . . . Manual . | . . . . . . Terminals 13 | . 5 . 4 4 . Fabricators . | . . . . . . Repair Stations . | . . . . . . Recycling Units . | . . . . . . Scanalyzers . | . . . . . . Garrison Access 1 | . . . . 1 . Terminal Hacks 8 | . 2 . 4 2 . Record 4 | . 2 . . 2 . Prototype ID Bank 1 | . . . 1 . . Maintenance Status 1 | . . . 1 . . Transport Status 1 | . . . 1 . . Hauler Manifests 1 | . . . 1 . . Fabricator Hacks . | . . . . . . Repair Station Hacks . | . . . . . . Recycling Unit Hacks . | . . . . . . Scanalyzer . | . . . . . . Garrison Access Hacks 1 | . . . . 1 . Unlock Access 1 | . . . . 1 . Unauthorized Hacks . | . . . . . . Terminals . | . . . . . . Fabricators . | . . . . . . Repair Stations . | . . . . . . Recycling Units . | . . . . . . Scanalyzers . | . . . . . . Garrison Access . | . . . . . . Data Cores Recovered . | . . . . . . Used . | . . . . . . Hacking Detections 3 | . 1 . 1 1 . Full Trace Events 2 | . 1 . . 1 . Feedback Events . | . . . . . . Feedback Blocked . | . . . . . . Robot Schematics Acquired . | . . . . . . Robots Built . | . . . . . . Authchips . | . . . . . . Time . | . . . . . . Total Robot Build Rating . | . . . . . . Part Schematics Acquired . | . . . . . . Parts Built . | . . . . . . Authchips . | . . . . . . Time . | . . . . . . Total Part Build Rating . | . . . . . . Parts Repaired . | . . . . . . Time . | . . . . . . Parts Recycled . | . . . . . . Recycled Matter . | . . . . . . Retrieved Matter . | . . . . . . Retrieved Components . | . . . . . . Parts Scanalyzed . | . . . . . . Part Schematics Acquired . | . . . . . . Parts Damaged . | . . . . . . Bothacking | -11 -10 -10 -9 -8 -8 ------------ Run | Yrd Mat Min Mat Mat Gar Used RIF Installer . | . . . . . . Robots Hacked . | . . . . . . Non-combat . | . . . . . . Combat . | . . . . . . Robot Hacks Applied . | . . . . . . Relay Couplers Released . | . . . . . . Fabnet Peak Effective % . | . . . . . . Robots Rewired . | . . . . . . Allies Hacked . | . . . . . . Hacks Repelled . | . . . . . . Allies | -11 -10 -10 -9 -8 -8 -------- Run | Yrd Mat Min Mat Mat Gar Total Allies . | . . . . . . Largest Group . | . . . . . . Highest-Rated Group . | . . . . . . Highest-Rated Ally . | . . . . . . Total Orders . | . . . . . . Ally Attacks . | . . . . . . Total Damage . | . . . . . . Kills . | . . . . . . Allies Corrupted . | . . . . . . Allies Melted . | . . . . . . Intel | -11 -10 -10 -9 -8 -8 ------- Run | Yrd Mat Min Mat Mat Gar Robot Analysis Total . | . . . . . . Derelict Logs Recovered . | . . . . . . Drone Launches . | . . . . . . Drone Recoveries . | . . . . . . Exploration | -11 -10 -10 -9 -8 -8 ------------- Run | Yrd Mat Min Mat Mat Gar Turns Passed 653 | 44 156 16 247 138 52 Spaces Moved 560 | 30 65 31 247 111 76 Core 267 | 2 4 31 106 48 76 Treads . | . . . . . . Legs 293 | 28 61 . 141 63 . Wheels . | . . . . . . Hover . | . . . . . . Flight . | . . . . . . Fastest Speed 50 | 50 50 50 50 50 50 Average Speed 107 | 115 232 50 98 108 50 Slowest Speed 260 | 120 260 50 150 200 100 Overloaded Moves . | . . . . . . Propulsion Burnouts . | . . . . . . Robots Hopped . | . . . . . . Cave-ins Triggered . | . . . . . . Exploration Rate (%) 17 | 3 18 12 21 21 29 Regions Visited 5 Branch Regions 1 Pre-discovered Areas . | . . . . . . Known Exits Taken 1 | . . . . 1 . Unknown Exits Taken 4 | 1 1 1 1 . . Scrap Searched . | . . . . . . Spaces Dug . | . . . . . . Terrain Destroyed 49 | . . . . 49 . Melee . | . . . . . . Projectile . | . . . . . . AOE 49 | . . . . 49 . Terrain Rammed . | . . . . . . Walls Destroyed . | . . . . . . Machines Disabled . | . . . . . . Actions | -11 -10 -10 -9 -8 -8 --------- Run | Yrd Mat Min Mat Mat Gar Total 597 | 39 69 30 251 123 85 Wait . | . . . . . . Move 556 | 29 64 30 246 111 76 Hop . | . . . . . . Pick Up 14 | 5 2 . 2 3 2 Fast Attach . | . . . . . . Attach 13 | 4 1 . 3 3 2 Detach . | . . . . . . Swap 2 | 1 1 . . . . Drop 1 | . 1 . . . . Fire 10 | . . . . 5 5 Melee . | . . . . . . Ram 1 | . . . . 1 . Kick . | . . . . . . Crush . | . . . . . . Escape Stasis . | . . . . . . Rewire . | . . . . . . Trap . | . . . . . . Miscellaneous . | . . . . . . Route ------- -11/Scrapyard -10/Materials (discovered 2 exits: *Mat / [*Min]) -10/Mines -9/Materials -8/Materials -8/Garrison History --------- Turn | Location | Event 26 | -11/Scrapyard | Discovered new exit (range 15) 45 | -11/Scrapyard | Entered Materials 160 | -10/Materials | Discovered new exit (range 10) 160 | -10/Materials | Discovered new exit (range 13) 199 | -10/Materials | Released all parts (4) 201 | -10/Materials | Core integrity fell below 50% 201 | -10/Materials | Entered Mines 214 | -10/Mines | Discovered new exit (range 6) 217 | -10/Mines | Entered Materials 217 | -9/Materials | Evolved 2 slots: Power x1, Propulsion x1 316 | -9/Materials | Build established: Mutant 448 | -9/Materials | Discovered new exit (range 7) 464 | -9/Materials | Entered another Materials area 464 | -8/Materials | Evolved 2 slots: Propulsion x1, Utility x1 588 | -8/Materials | Core integrity fell below 50% 602 | -8/Materials | Identified exit to Garrison 602 | -8/Materials | Entered Garrison 624 | -8/Garrison | Triggered checkpoint 625 | -8/Garrison | Lost 3 parts (2u1w) 625 | -8/Garrison | Triggered checkpoint 630 | -8/Garrison | Triggered checkpoint 631 | -8/Garrison | Core integrity fell below 20% 654 | -8/Garrison | Destroyed by C-17 Slicer with Blade Saw Last Messages --------------- 00596_ Acquired 22 matter. 00597_ K-01 Serf cleans the Nuclear Reactor. 00599_ O-24 Administrator: "IFF HANDSHAKE FAILED. SECURING TERMINAL." 00602_ Connecting with Garrison Access... >>Unlock Access door unlocked. 00602_ EXIT=UNLOCKED: GARRISON LOCATION=GARRISON GOAL=ESCAPE 00624_ Beams of light sweep through the air. An alarm sounds. 00630_ Knocked back. 00640_ Acquired Assault Cannon. 00645_ Assault Cannon severed. [Achievement: Storm Trooper] The achievement interface (ESC then open Records) offers an effective way to explore all of your earned achievements as well as seek out new goals for future runs. Map ----- +----------------------------------------------------+ | ?????????????????????????????????????????????????? | | ?????????????????????????????????????????????????? | | ?????????????????????????????????????????####????? | | ????????????????????????????????????????? #????? | | ????????????????????????????????????????? #????? | | ?????????????????????????????????????????# #????? | | ?????????????????????????????????????????# #????? | | ?????????????????????????????????????????# #????? | | ?????????????????????????????????????????# #????? | | ?????????????????????????????????????????# #????? | | ?????????????????????????????????????????# #??### | | ?????????????????????????????????????????# #? | | ????????????????????????????????????????## ## | | ????????????????????????????????????????# | | ????????????????????????????????????????# | | ????????????????????????????????????????# | | ????????????????????????????????????????# ## | | ??????????????????????????????????????### ## | | ??????????????????????????????????????# | | ??????????????????????????????????????# | | ??????????????????????????????????????# | | ??????????????????????????????????????# | | ??????????????????????????????????????### ## | | ???????????????????????????????########## ## | | ?????????????????????########??# | | ?????????????????????#]]]@ !#??# | | ?????????????????????#]]]c !#??# ####### | | ?????????????????????#####s##??# #?????# ## | | ???????????????????#######s##### #?????# #? | | ???????????????# s #?????# #??### | | ???????????????????### ######### #?????# #????? | | ???????????????????????????????# #?????# #????? | | ???????????????????????????????# #?????# #????? | | ???????????????????????????????# #?????# #????? | | ???????????????????????????????####?????# #????? | | ???????????????????????????????????????? #????? | | ???????????????????????????????????????? #????? | | ???????????????????????????????????????? #????? | | ????????????????????????????????????????###+#????? | | ??????????????????????????????????????????? ?????? | | ?????????????????????????????????????????????????? | | ?????????????????????????????????????????????????? | | ?????????????????????????????????????????????????? | | ?????????????????????????????????????????????????? | | ?????????????????????????????????????????????????? | | ?????????????????????????????????????????????????? | | ?????????????????????????????????????????????????? | | ?????????????????????????????????????????????????? | | ?????????????????????????????????????????????????? | | ?????????????????????????????????????????????????? | +----------------------------------------------------+ Best States ------------- Heat Dissipation 31 Energy Generation 10 Energy Capacity 250 Matter Stores 300 Matter Capacity 300 Sight Range 16 Robot Scan Range 15 Terrain Scan Density 10 Armor Coverage 150 Evasion (%) 55 Item Schematics ----------------- None Robot Schematics ------------------ None Fabricated ------------ Nothing Alien Tech Used ----------------- None Achievements -------------- One Hack Too Far Shopping List Storm Trooper Uninvited Guest Challenges ------------ None Game ------ Seed DisposableRefineryAnalyzer Manual? 0 Play Time 00:11:45 Cumulative 2.3 hours Start 2024.04.17 @ 08:40:41 End 2024.04.17 @ 08:51:29 Sessions 1 Manual Loads 0 Difficulty Rogue Special Mode None Game No. 8 Rogue 8 Adventurer 0 Explorer 0 Win Type - Total 0 Types 0/0/0/0/0/0/0/0/0 Lore% 1 Gallery% 5 Achievement% 3 Wizard Run 0 Options --------- Layout 1 ASCII 0 Keyboard 0 Movement Numpad Keybinds 0 Fullscreen 1 Font 24/Smallcaps Map View 50x35 Zoom Use 0% Tactical HUD 1 Map Filters NONE Filters NONE Steam 1 RUN: c7d30094-4cc5-4bc2-8a60-74bbf9f030ea